[Event "2nd Sharjah Masters 2018"]
[Site "Sharjah"]
[Date "2018.04.18"]
[Round "8"]
[White "Dhulipalla Bala Chandra Prasa"]
[Black "Sidhant, Mohapatra"]
[Result "1/2-1/2"]
[ECO "A40"]
[WhiteElo "2294"]
[BlackElo "2382"]
[Annotator "NA"]
[PlyCount "75"]
[EventDate "2018.??.??"]
[EventType "swiss"]
[EventCountry "UAE"]
[SourceTitle "playchess.com"]
[Source "ChessBase"]
[SourceQuality "1"]
[TimeControl "5400+30"]

1. d4 {[%emt 0:00:00]} Nf6 {[%emt 0:00:23]} 2. c4 {[%emt 0:00:04]} e6 {[%emt 0:00:08]} 3. g3 {[%emt 0:00:07]} d5 {[%emt 0:00:05]} 4. Nf3 {[%emt 0:00:08]} Bb4+ {[%emt 0:00:09]} 5. Bd2 {[%emt 0:00:17]} Bd6 {[%emt 0:00:22]} 6. Nc3 {[%emt 0:02:03]} c6 {[%emt 0:02:24]} 7. Qc2 {[%emt 0:03:28]} O-O {[%emt 0:08:17]} 8. e4 {[%emt 0:13:30]} dxe4 {[%emt 0:25:12]} 9. Nxe4 {[%emt 0:00:15]} Nxe4 {[%emt 0:00:20]} 10. Qxe4 {[%emt 0:00:09]} Re8 {[%emt 0:00:10]} 11. Bd3 {[%emt 0:20:57]} f5 {[%emt 0:00:51]} 12. Qe2 {[%emt 0:00:19]} c5 {[%emt 0:03:02]} 13. O-O {[%emt 0:01:12]} Nc6 {[%emt 0:02:44]} 14. dxc5 $14 {[%emt 0:17:33]} Bxc5 {[%emt 0:00:26]} 15. Bg5 {[%emt 0:02:49]} Be7 {[%emt 0:09:17]} 16. Bxe7 {[%emt 0:05:23]} Qxe7 {[%emt 0:00:37]} 17. Ne5 {[%emt 0:00:28]} Qd6 {[%emt 0:06:48]} 18. Nxc6 {[%emt 0:10:03]} Qxc6 {[%emt 0:00:12]} 19. Rfe1 {[%emt 0:05:03]} e5 {[%emt 0:01:37]} 20. Rad1 {[%emt 0:07:21]} e4 {[%emt 0:04:26]} 21. Qe3 {[%emt 0:02:38]} Be6 {[%emt 0:01:12]} 22. Be2 {[%emt 0:00:06]} Bf7 {[%emt 0:03:43]} 23. Rd4 {[%emt 0:00:56]} Rad8 {[%emt 0:07:02]} 24. Red1 {[%emt 0:01:36]} Rxd4 {[%emt 0:00:11]} 25. Qxd4 {[%emt 0:00:39]} h6 {[%emt 0:01:49]} 26. Qd7 {[%emt 0:01:26]} Qb6 {[%emt 0:01:35]} 27. Qd4 {[%emt 0:01:36]} Qa5 {[%emt 0:00:17]} 28. a3 {[%emt 0:00:21]} b6 {[%emt 0:00:37]} 29. Qe3 {[%emt 0:00:26]} Qe5 {[%emt 0:00:47]} 30. Qd4 {[%emt 0:00:21]} Qe7 {[%emt 0:01:00]} 31. Qd7 {[%emt 0:01:05]} Qf6 {[%emt 0:00:08]} 32. Qd4 {[%emt 0:00:46]} Qg5 {[%emt 0:01:52]} 33. h4 {[%emt 0:01:26]} Qg6 {[%emt 0:01:08]} 34. Qd6 {[%emt 0:00:30]} Re6 {[%emt 0:00:20]} 35. Qb8+ {[%emt 0:00:12]} Re8 {[%emt 0:00:01]} 36. Qd6 {[%emt 0:00:30]} Re6 {[%emt 0:00:01]} 37. Qb8+ {[%emt 0:01:54]} Re8 {[%emt 0:00:06]} 38. Qd6 {[%emt 0:00:46]} 1/2-1/2

[Event "2nd Sharjah Masters 2018"]
[Site "Sharjah"]
[Date "2018.04.18"]
[Round "8"]
[White "Srija, Seshadri"]
[Black "Gagare, Shalmali"]
[Result "1-0"]
[ECO "B33"]
[WhiteElo "2264"]
[BlackElo "2039"]
[Annotator "NA"]
[PlyCount "121"]
[EventDate "2018.??.??"]
[EventType "swiss"]
[EventCountry "UAE"]
[SourceTitle "playchess.com"]
[Source "ChessBase"]
[SourceQuality "1"]
[TimeControl "5400+30"]

1. e4 {[%emt 0:00:00]} c5 {[%emt 0:00:48]} 2. Nf3 {[%emt 0:00:00]} Nc6 {[%emt 0:00:19]} 3. d4 {[%emt 0:00:00]} cxd4 {[%emt 0:00:31]} 4. Nxd4 {[%emt 0:00:08]} Nf6 {[%emt 0:00:41]} 5. Nc3 {[%emt 0:00:08]} e5 {[%emt 0:00:27]} 6. Ndb5 {[%emt 0:00:09]} d6 {[%emt 0:00:32]} 7. Bg5 {[%emt 0:00:14]} a6 {[%emt 0:01:07]} 8. Na3 {[%emt 0:00:07]} b5 {[%emt 0:00:43]} 9. Nd5 {[%emt 0:00:07]} Be7 {[%emt 0:00:32]} 10. Bxf6 {[%emt 0:00:15]} Bxf6 {[%emt 0:00:16]} 11. c4 {[%emt 0:00:07]} b4 {[%emt 0:02:14]} 12. Nc2 {[%emt 0:00:07]} a5 {[%emt 0:01:18]} 13. g3 {[%emt 0:00:37]} O-O {[%emt 0:01:59]} 14. Bg2 {[%emt 0:00:37]} Bg5 {[%emt 0:02:12]} 15. O-O {[%emt 0:00:16]} Ne7 {[%emt 0:08:17]} 16. b3 {[%emt 0:05:59]} Bb7 {[%emt 0:09:52]} 17. Nxe7+ {[%emt 0:10:04]} Qxe7 {[%emt 0:01:43]} 18. Qd3 {[%emt 0:00:38]} Qc7 {[%emt 0:30:00]} 19. Rad1 {[%emt 0:05:50]} Rad8 {[%emt 0:04:37]} 20. f4 {[%emt 0:01:02]} exf4 {[%emt 0:05:20]} 21. gxf4 {[%emt 0:00:09]} Bf6 {[%emt 0:05:12]} 22. Ne3 {[%emt 0:01:23]} Rfe8 {[%emt 0:04:14]} 23. Nf5 {[%emt 0:08:23]} Re6 {[%emt 0:04:51]} 24. Rf2 {[%emt 0:09:09]} g6 {[%emt 0:04:56]} 25. Nh6+ {[%emt 0:02:00]} Kg7 {[%emt 0:02:33]} 26. f5 {[%emt 0:00:22]} Ree8 {[%emt 0:02:56]} 27. Ng4 {[%emt 0:05:59]} g5 {[%emt 0:02:07]} 28. Qh3 {[%emt 0:07:46]} h5 {[%emt 0:00:35]} 29. Nxf6 {[%emt 0:00:09]} Kxf6 {[%emt 0:00:06]} 30. Qxh5 {[%emt 0:00:18]} Rh8 {[%emt 0:00:09]} 31. Qe2 {[%emt 0:00:07]} Qe7 {[%emt 0:01:46]} 32. Bf3 {[%emt 0:19:07]} Qe5 {[%emt 0:00:35]} 33. Rg2 {[%emt 0:00:45]} Rh4 {[%emt 0:00:45]} 34. Qe3 {[%emt 0:08:06]} Rf4 {[%emt 0:01:13]} 35. Re2 {[%emt 0:04:27]} Re8 {[%emt 0:01:26]} 36. Qd3 {[%emt 0:05:36]} Rd8 {[%emt 0:01:01]} 37. Bg2 {[%emt 0:00:36]} Ke7 {[%emt 0:00:20]} 38. Qg3 {[%emt 0:01:45]} f6 {[%emt 0:00:15]} 39. Ree1 {[%emt 0:03:10]} Kf7 {[%emt 0:00:24]} 40. Qe3 {[%emt 0:02:48]} Rh4 {[%emt 0:00:39]} 41. Qg3 {[%emt 0:00:46]} Rf4 {[%emt 0:00:12]} 42. Rf1 {[%emt 0:00:41]} Bxe4 {[%emt 0:00:53]} 43. Rxf4 {[%emt 0:00:01]} gxf4 {[%emt 0:00:27]} 44. Qg6+ {[%emt 0:00:07]} Kf8 {[%emt 0:00:40]} 45. Bxe4 {[%emt 0:00:15]} Rd7 {[%emt 0:00:27]} 46. Qh6+ {[%emt 0:01:44]} Rg7+ {[%emt 0:00:10]} 47. Kf1 {[%emt 0:00:26]} Qxe4 {[%emt 0:00:26]} 48. Qxf6+ {[%emt 0:00:03]} Kg8 {[%emt 0:01:10]} 49. Qe6+ {[%emt 0:00:10]} Qxe6 {[%emt 0:00:05]} 50. fxe6 {[%emt 0:00:01]} Ra7 {[%emt 0:00:38]} 51. Rxd6 {[%emt 0:00:06]} Kf8 {[%emt 0:00:23]} 52. Rd8+ {[%emt 0:00:20]} Ke7 {[%emt 0:00:09]} 53. Rd7+ {[%emt 0:00:04]} Rxd7 {[%emt 0:00:08]} 54. exd7 {[%emt 0:00:02]} Kxd7 {[%emt 0:00:19]} 55. Ke2 {[%emt 0:00:20]} Kd6 {[%emt 0:00:14]} 56. Kd3 {[%emt 0:00:16]} Ke5 {[%emt 0:00:19]} 57. h4 {[%emt 0:00:07]} Kf5 {[%emt 0:00:15]} 58. h5 {[%emt 0:00:14]} Kg4 {[%emt 0:00:15]} 59. h6 {[%emt 0:00:08]} f3 {[%emt 0:00:29]} 60. h7 {[%emt 0:00:05]} f2 {[%emt 0:00:10]} 61. Ke4 1-0

[Event "2nd Sharjah Masters 2018"]
[Site "Sharjah"]
[Date "2018.04.18"]
[Round "8"]
[White "El Jawich, Amro"]
[Black "Aditya Varun Gampa"]
[Result "1-0"]
[ECO "B23"]
[WhiteElo "2254"]
[BlackElo "1696"]
[Annotator "NA"]
[PlyCount "87"]
[EventDate "2018.??.??"]
[EventType "swiss"]
[EventCountry "UAE"]
[SourceTitle "playchess.com"]
[Source "ChessBase"]
[SourceQuality "1"]
[TimeControl "5400+30"]

1. e4 c5 2. Nc3 d6 3. f4 g6 4. d4 cxd4 5. Qxd4 Nf6 6. Bd3 Nc6 7. Qf2 Bg7 8. Nf3 O-O 9. h3 Nb4 10. O-O b6 11. Be3 Nxd3 12. cxd3 Ba6 13. Rad1 Rc8 14. f5 Nd7 15. Qh4 $16 Bxc3 16. bxc3 Rxc3 17. Bd4 Rxd3 18. Rxd3 Bxd3 19. Qh6 e5 20. fxe6 f6 21. Ng5 Qe7 22. exd7 Bxf1 23. Ne6 Qxe6 24. Qxf8+ Kxf8 25. d8=Q+ Kg7 26. Qc7+ Kg8 27. Kxf1 Qxe4 28. Qd8+ Kf7 29. Qxf6+ Ke8 30. Qxd6 Qb1+ 31. Kf2 Qxa2+ 32. Kg1 a5 33. Bxb6 a4 34. Qd8+ Kf7 35. Qd7+ Kg8 36. Qe8+ Kg7 37. Bd4+ Kh6 38. Qf8+ Kh5 39. Qf3+ Kh6 40. Qf4+ g5 41. Qf6+ Kh5 42. g4+ Kh4 43. Bf2+ Kxh3 44. Qf3# 1-0

[Event "2nd Sharjah Masters 2018"]
[Site "Sharjah"]
[Date "2018.04.18"]
[Round "8"]
[White "Mohannad, Farhan"]
[Black "Sadhwani, Raunak"]
[Result "0-1"]
[ECO "E92"]
[WhiteElo "2219"]
[BlackElo "2358"]
[Annotator "NA"]
[PlyCount "108"]
[EventDate "2018.??.??"]
[EventType "swiss"]
[EventCountry "UAE"]
[SourceTitle "playchess.com"]
[Source "ChessBase"]
[SourceQuality "1"]
[TimeControl "5400+30"]

1. d4 {[%emt 0:00:00]} Nf6 {[%emt 0:00:04]} 2. c4 {[%emt 0:00:00]} g6 {[%emt 0:00:06]} 3. Nc3 {[%emt 0:00:00]} Bg7 {[%emt 0:00:04]} 4. e4 {[%emt 0:00:09]} d6 {[%emt 0:00:04]} 5. Nf3 {[%emt 0:00:12]} O-O {[%emt 0:00:08]} 6. Be2 {[%emt 0:00:06]} e5 {[%emt 0:00:05]} 7. d5 {[%emt 0:00:05]} a5 {[%emt 0:00:39]} 8. Bg5 {[%emt 0:00:12]} h6 {[%emt 0:02:49]} 9. Bh4 {[%emt 0:00:05]} g5 {[%emt 0:02:25]} 10. Bg3 {[%emt 0:00:05]} Nh5 {[%emt 0:00:24]} 11. O-O {[%emt 0:00:16] E92: King's Indian: Classical: 6 Be2 e5: 7 dxe5, 7 Be3 and Petrosian System without 7...Nbd7} (11. h4 g4 12. Nd2 Nxg3 13. fxg3 h5 14. Qc2 Na6 15. O-O-O Qf6 16. Rhf1 Qh6 17. Kb1 Bd7 18. a3 a4 {0-1 (60) Aronian,L (2785)-Grischuk,A (2737) Doha 2016}) 11... Nf4 {[%emt 0:00:50]} 12. Nd2 {[%emt 0:00:13]} Qe8 {[%emt 0:08:39]} 13. Rb1 $146 {[%emt 0:02:02]} ({Find the theoretical novelty and annotate with similar games:} 13. Bg4 Bd7 14. Bxd7 Qxd7 15. Qc2 h5 16. f3 Kh8 17. Kh1 Rg8 {1-0 (58) Haydon,R (2220)-Buckley,S (2110) Hanham 1997}) 13... f5 {[%emt 0:01:51]} 14. exf5 {[%emt 0:00:15]} Bxf5 {[%emt 0:00:32]} 15. Nde4 {[%emt 0:00:28]} Qg6 {[%emt 0:00:50]} 16. f3 {[%emt 0:00:49]} Nd7 {[%emt 0:00:08]} 17. Rc1 {[%emt 0:01:26]} h5 {[%emt 0:00:53]} 18. Nb5 {[%emt 0:18:23]} Rac8 {[%emt 0:06:17]} ({But not} 18... Bxe4 $6 19. fxe4 Qxe4 20. Bxf4 $11) 19. Bxf4 {[%emt 0:07:09]} exf4 {[%emt 0:00:19]} 20. Nd4 {[%emt 0:00:22]} Bxe4 {[%emt 0:00:48]} 21. fxe4 {[%emt 0:00:09]} Bxd4+ {[%emt 0:00:45]} 22. Qxd4 {[%emt 0:00:04]} b6 {[%emt 0:01:27]} 23. Qd2 {[%emt 0:06:31]} Ne5 {[%emt 0:02:16]} 24. a3 {[%emt 0:05:20]} Rf7 $19 {[%emt 0:00:50]} ({But not} 24... Qxe4 25. Bxh5 Nxc4 26. Qe2 $17) 25. b4 {[%emt 0:02:14]} axb4 {[%emt 0:00:04]} 26. axb4 {[%emt 0:00:04]} Rcf8 {[%emt 0:00:03]} 27. c5 {[%emt 0:02:36]} bxc5 {[%emt 0:00:37]} 28. bxc5 {[%emt 0:00:03]} g4 {[%emt 0:00:18]} 29. cxd6 {[%emt 0:01:06]} cxd6 {[%emt 0:00:06]} 30. Ba6 {[%emt 0:05:47]} f3 {[%emt 0:08:33]} 31. Rc8 {[%emt 0:00:20]} h4 {[%emt 0:09:16]} 32. Qe3 {[%emt 0:07:21]} Kg7 {[%emt 0:02:35]} 33. Rxf8 {[%emt 0:00:32]} Rxf8 {[%emt 0:00:03]} 34. Qd4 {[%emt 0:12:30]} Rf4 {[%emt 0:07:50]} 35. Qa7+ {[%emt 0:03:50]} Rf7 {[%emt 0:01:48]} 36. Qd4 Rc7 37. Rf2 {[%emt 0:06:36]} Kh7 {[%emt 0:03:40]} 38. g3 {[%emt 0:02:53]} Qh6 {[%emt 0:02:26]} 39. Bf1 {[%emt 0:00:19]} Rc1 {[%emt 0:06:44]} 40. Qa7+ {[%emt 0:01:29]} Kg6 {[%emt 0:00:45]} 41. Qe7 {[%emt 0:06:58]} Qe3 {[%emt 0:13:42]} 42. Qxd6+ {[%emt 0:00:56]} Kf7 {[%emt 0:05:39]} 43. Qe6+ {[%emt 0:00:04]} Kf8 {[%emt 0:00:02]} 44. Qf6+ {[%emt 0:03:10]} Nf7 {[%emt 0:02:59]} 45. Qf4 {[%emt 0:05:07]} Qxf4 {[%emt 0:01:33]} 46. gxf4 {[%emt 0:00:04]} Nd6 {[%emt 0:00:21]} 47. h3 {[%emt 0:00:27]} g3 {[%emt 0:07:33]} 48. Rxf3 {[%emt 0:00:04]} Nxe4 {[%emt 0:00:03]} 49. Rd3 {[%emt 0:03:11]} Nd6 {[%emt 0:02:47]} 50. Re3 {[%emt 0:00:49]} Nf5 {[%emt 0:00:06]} 51. Rd3 {[%emt 0:01:33]} Re1 {[%emt 0:00:26]} 52. d6 {[%emt 0:00:58]} Ne3 {[%emt 0:00:09]} 53. Rxe3 {[%emt 0:00:06]} Rxe3 {[%emt 0:00:03]} 54. Bb5 {[%emt 0:00:04]} Rf3 {[%emt 0:00:06]} 0-1

[Event "2nd Sharjah Masters 2018"]
[Site "Sharjah"]
[Date "2018.04.18"]
[Round "8"]
[White "Zhu, Yilun"]
[Black "Assaubayeva, Bibisara"]
[Result "1-0"]
[ECO "C78"]
[WhiteElo "2195"]
[BlackElo "2359"]
[Annotator "NA"]
[PlyCount "153"]
[EventDate "2018.??.??"]
[EventType "swiss"]
[EventCountry "UAE"]
[SourceTitle "playchess.com"]
[Source "ChessBase"]
[SourceQuality "1"]
[TimeControl "5400+30"]

1. e4 {[%emt 0:00:00]} e5 {[%emt 0:00:11]} 2. Nf3 {[%emt 0:00:00]} Nc6 {[%emt 0:00:09]} 3. Bb5 {[%emt 0:00:00]} a6 {[%emt 0:00:13]} 4. Ba4 {[%emt 0:00:01]} Nf6 {[%emt 0:00:15]} 5. O-O {[%emt 0:00:04]} b5 {[%emt 0:00:17]} 6. Bb3 {[%emt 0:00:03]} Bb7 {[%emt 0:00:20]} 7. d3 {[%emt 0:01:14]} Bc5 {[%emt 0:02:01]} 8. a4 {[%emt 0:00:38]} d6 {[%emt 0:03:09]} 9. Nc3 {[%emt 0:01:00]} b4 {[%emt 0:02:13]} 10. Ne2 {[%emt 0:00:26]} Na5 {[%emt 0:02:03]} 11. Ba2 {[%emt 0:00:31]} b3 {[%emt 0:01:36]} 12. Bd2 {[%emt 0:00:11]} bxa2 {[%emt 0:03:41]} 13. Bxa5 {[%emt 0:00:04]} O-O {[%emt 0:02:35]} 14. c4 {[%emt 0:00:05]} Ne8 {[%emt 0:05:52]} 15. Ng3 {[%emt 0:02:26]} g6 {[%emt 0:05:04]} 16. Bc3 {[%emt 0:11:32]} Ng7 {[%emt 0:06:48]} 17. b4 {[%emt 0:01:15]} Ba7 {[%emt 0:00:11]} 18. d4 {[%emt 0:04:49]} exd4 {[%emt 0:03:54]} 19. Nxd4 {[%emt 0:00:09]} h5 {[%emt 0:04:47]} 20. Re1 {[%emt 0:10:06]} h4 {[%emt 0:04:23]} 21. Ngf5 {[%emt 0:16:43]} gxf5 {[%emt 0:02:32]} 22. Nxf5 {[%emt 0:00:10]} f6 {[%emt 0:01:46]} 23. Qg4 {[%emt 0:00:16]} Rf7 {[%emt 0:00:06]} 24. Nh6+ {[%emt 0:00:04]} Kf8 {[%emt 0:00:25]} 25. Qg6 {[%emt 0:07:59]} Qe7 {[%emt 0:06:08]} 26. Nxf7 {[%emt 0:06:08]} Qxf7 {[%emt 0:00:02]} 27. Qxf6 {[%emt 0:00:09]} Qxf6 {[%emt 0:03:06]} 28. Bxf6 {[%emt 0:00:06]} h3 {[%emt 0:02:01]} 29. Rxa2 {[%emt 0:02:12]} Nh5 {[%emt 0:03:15]} 30. Bg5 {[%emt 0:00:22]} Kf7 {[%emt 0:02:03]} 31. Be3 {[%emt 0:03:15]} Bxe4 {[%emt 0:12:42]} 32. g4 {[%emt 0:08:51]} Rg8 {[%emt 0:05:15]} 33. f3 {[%emt 0:01:12]} Bxe3+ {[%emt 0:01:22]} 34. Rxe3 {[%emt 0:00:02]} Bb7 {[%emt 0:01:14]} 35. Rae2 {[%emt 0:02:04]} Nf4 {[%emt 0:01:19]} 36. Re1 {[%emt 0:00:39]} Kf6 {[%emt 0:02:42]} 37. Kf2 {[%emt 0:01:08]} Kg5 {[%emt 0:06:35]} 38. Kg3 {[%emt 0:01:41]} Rf8 {[%emt 0:00:57]} 39. Rc3 {[%emt 0:03:21]} Ng6 {[%emt 0:01:39]} 40. c5 {[%emt 0:02:33]} Ne5 {[%emt 0:03:27]} 41. cxd6 {[%emt 0:04:41]} cxd6 {[%emt 0:00:02]} 42. Ree3 {[%emt 0:00:51]} Rf7 {[%emt 0:01:11]} 43. b5 {[%emt 0:00:25]} axb5 {[%emt 0:00:04]} 44. axb5 {[%emt 0:00:02]} Bd5 {[%emt 0:02:15]} 45. Rc5 {[%emt 0:02:49]} Ba8 {[%emt 0:00:33]} 46. f4+ {[%emt 0:00:18]} Kg6 {[%emt 0:00:19]} 47. Rc8 {[%emt 0:00:21]} Bb7 {[%emt 0:00:10]} 48. Re8 {[%emt 0:00:31]} Nc4 {[%emt 0:00:43]} 49. R3e6+ {[%emt 0:01:07]} Kg7 {[%emt 0:00:03]} 50. R6e7 {[%emt 0:00:25]} Bg2 {[%emt 0:00:02]} 51. Kh4 {[%emt 0:00:45]} Rxe7 52. Rxe7+ {[%emt 0:00:03]} Kf6 {[%emt 0:01:03]} 53. Re8 {[%emt 0:01:42]} d5 {[%emt 0:00:42]} 54. Kg3 {[%emt 0:00:17]} d4 {[%emt 0:00:36]} 55. Rd8 {[%emt 0:00:14]} Ne3 {[%emt 0:00:21]} 56. Rd6+ {[%emt 0:00:39]} Ke7 {[%emt 0:00:07]} 57. Rxd4 {[%emt 0:00:10]} Nf1+ {[%emt 0:00:02]} 58. Kf2 {[%emt 0:01:01]} Nxh2 {[%emt 0:00:03]} 59. f5 {[%emt 0:00:11]} Kf6 {[%emt 0:01:33]} 60. Rd6+ {[%emt 0:02:47]} Kg5 {[%emt 0:01:39]} 61. Rg6+ {[%emt 0:00:02]} Kh4 {[%emt 0:00:22]} 62. f6 {[%emt 0:00:32]} Bd5 {[%emt 0:00:11]} 63. Rh6+ {[%emt 0:02:11]} Kxg4 {[%emt 0:00:23]} 64. b6 {[%emt 0:00:11]} Kg5 {[%emt 0:00:45]} 65. b7 {[%emt 0:01:49]} Ng4+ {[%emt 0:00:35]} 66. Kg3 {[%emt 0:00:19]} Bxb7 {[%emt 0:00:38]} 67. f7 {[%emt 0:00:35]} Nxh6 {[%emt 0:00:04]} 68. f8=Q {[%emt 0:00:04]} Nf5+ {[%emt 0:00:05]} 69. Kxh3 {[%emt 0:00:09]} Be4 {[%emt 0:00:02]} 70. Qb8 {[%emt 0:00:22]} Bf3 {[%emt 0:01:08]} 71. Qe5 {[%emt 0:00:16]} Bg4+ {[%emt 0:01:10]} 72. Kg2 {[%emt 0:00:06]} Kh5 {[%emt 0:00:20]} 73. Qf6 {[%emt 0:00:24]} Nh4+ {[%emt 0:00:31]} 74. Kg3 {[%emt 0:00:11]} Ng6 {[%emt 0:00:01]} 75. Qd4 {[%emt 0:01:07]} Bf5 {[%emt 0:00:54]} 76. Qe3 {[%emt 0:01:26]} Nf8 {[%emt 0:00:53]} 77. Qc5 {[%emt 0:00:31]} 1-0

[Event "2nd Sharjah Masters 2018"]
[Site "Sharjah"]
[Date "2018.04.18"]
[Round "8"]
[White "Abou El Zein, Eid Mahmoud"]
[Black "Soumya, Swaminathan"]
[Result "1-0"]
[ECO "A01"]
[WhiteElo "2156"]
[BlackElo "2354"]
[Annotator "NA"]
[PlyCount "91"]
[EventDate "2018.??.??"]
[EventType "swiss"]
[EventCountry "UAE"]
[SourceTitle "playchess.com"]
[Source "ChessBase"]
[SourceQuality "1"]
[TimeControl "5400+30"]

1. b3 {[%emt 0:01:15]} Nf6 {[%emt 0:03:40]} 2. Bb2 {[%emt 0:00:05]} e6 {[%emt 0:00:27]} 3. e3 {[%emt 0:00:28]} d5 {[%emt 0:02:26]} 4. Nf3 {[%emt 0:00:11]} Bd6 {[%emt 0:04:04]} 5. d4 {[%emt 0:00:18]} O-O {[%emt 0:01:04]} 6. Nbd2 {[%emt 0:00:19]} Qe7 {[%emt 0:04:01]} 7. Bd3 {[%emt 0:02:10]} Ba3 {[%emt 0:09:29]} 8. Bxa3 {[%emt 0:01:10]} Qxa3 {[%emt 0:00:03]} 9. Ne5 {[%emt 0:10:51]} c5 {[%emt 0:03:37]} 10. c3 {[%emt 0:01:48]} Qb2 {[%emt 0:09:12]} 11. Rc1 {[%emt 0:00:03]} Qxa2 {[%emt 0:01:54]} 12. O-O {[%emt 0:00:31]} Qa5 {[%emt 0:01:03]} 13. f4 {[%emt 0:00:20]} Nbd7 {[%emt 0:35:55]} 14. g4 {[%emt 0:04:26]} Qd8 {[%emt 0:00:02]} 15. g5 {[%emt 0:01:02]} Ne4 {[%emt 0:01:36]} 16. Nxe4 {[%emt 0:00:23]} dxe4 {[%emt 0:00:07]} 17. Bxe4 {[%emt 0:00:50]} Nxe5 {[%emt 0:00:21]} 18. Bxh7+ {[%emt 0:03:26]} Kxh7 {[%emt 0:00:03]} 19. Qh5+ {[%emt 0:00:03]} Kg8 {[%emt 0:00:06]} 20. fxe5 {[%emt 0:00:04]} Qc7 {[%emt 0:05:03]} 21. Rf4 {[%emt 0:00:35]} g6 {[%emt 0:00:20]} 22. Qh6 {[%emt 0:01:15]} f5 {[%emt 0:00:10]} 23. gxf6 {[%emt 0:00:31]} Qh7 {[%emt 0:00:24]} 24. Qg5 {[%emt 0:01:01]} Kf7 {[%emt 0:03:16]} 25. Rh4 {[%emt 0:00:08]} Qg8 {[%emt 0:00:02]} 26. Rh6 {[%emt 0:00:41]} Bd7 {[%emt 0:02:02]} 27. Kf2 {[%emt 0:00:32]} Ke8 {[%emt 0:05:01]} 28. Rxg6 {[%emt 0:00:09]} Qh7 {[%emt 0:00:15]} 29. h4 {[%emt 0:00:28]} Kd8 {[%emt 0:00:19]} 30. dxc5 {[%emt 0:01:08]} Kc7 {[%emt 0:00:22]} 31. Rd1 {[%emt 0:01:33]} Rad8 {[%emt 0:01:51]} 32. Rd6 {[%emt 0:01:20]} Rh8 {[%emt 0:02:56]} 33. c6 {[%emt 0:02:35]} bxc6 {[%emt 0:00:17]} 34. Rg7 {[%emt 0:00:06]} Qxh4+ {[%emt 0:04:01]} 35. Qxh4 {[%emt 0:00:15]} Rxh4 {[%emt 0:00:04]} 36. Rxe6 {[%emt 0:00:05]} Kb6 {[%emt 0:01:38]} 37. Rd6 {[%emt 0:00:14]} Kc7 {[%emt 0:00:19]} 38. Re7 {[%emt 0:02:53]} Rh6 {[%emt 0:00:59]} 39. c4 {[%emt 0:07:33]} c5 {[%emt 0:00:55]} 40. Rd5 {[%emt 0:00:16]} Kc6 {[%emt 0:00:04]} 41. f7 {[%emt 0:00:16]} Rhh8 {[%emt 0:00:59]} 42. e6 {[%emt 0:00:12]} Bxe6 {[%emt 0:00:18]} 43. Rxe6+ {[%emt 0:00:16]} Kc7 {[%emt 0:00:01]} 44. Re7+ {[%emt 0:00:13]} Kc8 {[%emt 0:00:10]} 45. Rxc5+ {[%emt 0:00:20]} Kb8 {[%emt 0:00:10]} 46. Rcc7 {[%emt 0:01:54]} 1-0

[Event "2nd Sharjah Masters 2018"]
[Site "Sharjah"]
[Date "2018.04.18"]
[Round "8"]
[White "Ma, Lin"]
[Black "Ahmed, Fareed"]
[Result "1-0"]
[ECO "A05"]
[WhiteElo "2156"]
[BlackElo "1989"]
[Annotator "NA"]
[PlyCount "87"]
[EventDate "2018.??.??"]
[EventType "swiss"]
[EventCountry "UAE"]
[SourceTitle "playchess.com"]
[Source "ChessBase"]
[SourceQuality "1"]
[TimeControl "5400+30"]

1. Nf3 {[%emt 0:00:00]} Nf6 {[%emt 0:20:01]} 2. g3 {[%emt 0:00:09]} d5 {[%emt 0:00:47]} 3. Bg2 {[%emt 0:00:08]} Bg4 {[%emt 0:00:13]} 4. O-O {[%emt 0:02:50]} e6 {[%emt 0:00:03]} 5. d3 {[%emt 0:01:06]} Nbd7 {[%emt 0:00:05]} 6. Nbd2 {[%emt 0:00:42]} Bd6 {[%emt 0:04:43]} 7. h3 {[%emt 0:01:00]} Bh5 {[%emt 0:00:05]} 8. e4 {[%emt 0:02:14]} O-O {[%emt 0:04:07]} 9. Qe2 dxe4 {[%emt 0:01:44]} 10. dxe4 {[%emt 0:18:35]} Bc5 {[%emt 0:02:44]} 11. e5 {[%emt 0:08:12]} Nd5 {[%emt 0:02:35]} 12. Ne4 {[%emt 0:00:41]} Bxf3 {[%emt 0:01:06]} 13. Bxf3 {[%emt 0:00:08]} Bd4 {[%emt 0:00:11]} 14. Rd1 {[%emt 0:00:46]} Bxe5 {[%emt 0:03:10]} 15. c4 {[%emt 0:00:49]} N5b6 {[%emt 0:05:31]} 16. Nc5 {[%emt 0:00:21]} Qe8 {[%emt 0:01:11]} 17. Nxd7 {[%emt 0:00:36]} Nxd7 {[%emt 0:00:25]} 18. Rxd7 {[%emt 0:03:05]} Qxd7 {[%emt 0:04:34]} 19. Qxe5 {[%emt 0:00:06]} Rad8 {[%emt 0:05:12]} 20. Be3 {[%emt 0:03:10]} b6 {[%emt 0:01:43]} 21. a4 {[%emt 0:06:17]} Qe7 {[%emt 0:05:40]} 22. a5 {[%emt 0:05:45]} f6 {[%emt 0:00:27]} 23. Qc3 {[%emt 0:01:15]} e5 {[%emt 0:00:42]} 24. axb6 {[%emt 0:02:05]} axb6 {[%emt 0:00:38]} 25. c5 {[%emt 0:00:26]} Qe6 {[%emt 0:16:45]} 26. cxb6 {[%emt 0:00:53]} cxb6 {[%emt 0:00:05]} 27. Qc7 {[%emt 0:00:10]} Rd7 {[%emt 0:02:55]} 28. Qxb6 {[%emt 0:00:26]} Qxb6 {[%emt 0:06:25]} 29. Bxb6 {[%emt 0:00:07]} Rb8 {[%emt 0:00:05]} 30. Ra8 {[%emt 0:01:11]} Rxa8 {[%emt 0:00:12]} 31. Bxa8 {[%emt 0:00:07]} Rd1+ {[%emt 0:00:54]} 32. Kg2 {[%emt 0:00:04]} Rb1 {[%emt 0:00:11]} 33. Bd5+ {[%emt 0:00:03]} Kh8 {[%emt 0:00:07]} 34. b3 {[%emt 0:00:09]} g6 {[%emt 0:00:14]} 35. Bc5 {[%emt 0:10:51]} Rd1 {[%emt 0:01:26]} 36. Bc4 {[%emt 0:02:37]} Rc1 {[%emt 0:02:35]} 37. Be3 {[%emt 0:03:23]} Rb1 {[%emt 0:00:45]} 38. Bh6 {[%emt 0:00:32]} e4 {[%emt 0:01:33]} 39. h4 {[%emt 0:00:37]} Rb2 {[%emt 0:00:13]} 40. g4 {[%emt 0:01:28]} g5 {[%emt 0:01:46]} 41. hxg5 {[%emt 0:01:00]} e3 {[%emt 0:00:08]} 42. gxf6 {[%emt 0:00:57]} Rxf2+ {[%emt 0:00:08]} 43. Kg3 {[%emt 0:00:07]} Rxf6 {[%emt 0:00:28]} 44. Bxe3 {[%emt 0:00:06]} 1-0